Workbook

Sheet Buwa
A1: Name | C1: Shubharaj Buwa, Associate Professor, Political Science | F1: FY | G1: 2016-04-01 | H1: 2017-03-01 | J1: Gender | K1: M | L1: AY | N1: 2017-18 | O1: PAN | P1: AEGPB6763H | S1: Bank A/c No. | T1: 20070193136
A2: Basic Salary as on 1/4/2016 | F2: =D4 -> 46440 | G2: Grade pay | H2: 9000 | I2: CLA | J2: 300
A3: Sr. No. | B3: Month | C3: Increments | D3: Basic | E3: Grade pay | F3: Total - Basic + Grade pay | G3: DA% | H3: DA | I3: HRA% | J3: HRA | K3: CLA | L3: TA | M3: Principal allowance | N3: Gross | O3: GPF | P3: PT | Q3: IT | R3: Cess | S3: TD | T3: NET | U3: Bank amount | V3: Date deposited | W3: Difference
A4: 1 | B4: Mar | D4: 46440 | E4: =$H$2 -> 9000 | F4: =D4+E4 -> 55440 | G4: 119 | H4: =ROUND((F4*(G4/100)),0) -> 65974 | I4: 30 | J4: =ROUND((F4*($I$4/100)),0) -> 16632 | K4: =$J$2 -> 300 | L4: 2400 | M4: 0 | N4: =F4+H4+J4+K4+L4+M4 -> 140746 | O4: 6000 | P4: 200 | Q4: 20000 | R4: 0 | S4: =SUM(O4:R4) -> 26200 | T4: =N4-S4 -> 114546 | U4: 114546 | V4: 2016-04-02 | W4: =T4-U4 -> 0
A5: 2 | B5: Apr | D5: =D4+C5 -> 46440 | E5: =$H$2 -> 9000 | F5: 55440 | G5: 119 | H5: 65974 | I5: 30 | J5: =ROUNDUP((F5*($I$4/100)),0) -> 16632 | K5: =$J$2 -> 300 | L5: 2400 | M5: 0 | N5: =F5+H5+J5+K5+L5+M5 -> 140746 | O5: 6000 | P5: 200 | Q5: 20000 | R5: 0 | S5: 26200 | T5: 114546 | U5: 114546 | V5: 2016-05-02 | W5: 0
A6: 3 | B6: May | D6: =D5+C6 -> 46440 | E6: 9000 | F6: 55440 | G6: 119 | H6: 65974 | I6: 30 | J6: =ROUND((F6*($I$6/100)),0) -> 16632 | K6: 300 | L6: 0 | M6: 0 | N6: 138346 | O6: 6000 | P6: 200 | Q6: 20000 | R6: 0 | S6: 26200 | T6: 112146 | U6: 112146 | V6: 2016-06-02 | W6: 0
A7: 4 | B7: Jun | D7: 46440 | E7: 9000 | F7: 55440 | G7: 119 | H7: 65974 | I7: 30 | J7: =ROUND((F7*($I$6/100)),0) -> 16632 | K7: 300 | L7: 2400 | M7: 0 | N7: 140746 | O7: 6000 | P7: 200 | Q7: 20000 | R7: 0 | S7: 26200 | T7: 114546 | U7: 114546 | V7: 2016-07-01 | W7: 0
A8: 5 | B8: Jul | C8: =MROUND(F7*3%,10) -> 1660 | D8: =D7+C8 -> 48100 | E8: 9000 | F8: 57100 | G8: 119 | H8: 67949 | I8: 30 | J8: 17130 | K8: 300 | L8: 2400 | M8: 0 | N8: 144879 | O8: 6000 | P8: 200 | R8: 0 | S8: 6200 | T8: 138679 | W8: 138679
A9: 6 | B9: Aug | D9: 48100 | E9: 9000 | F9: 57100 | G9: 119 | H9: 67949 | I9: 30 | J9: 17130 | K9: 300 | L9: 2400 | M9: 0 | N9: 144879 | O9: 6000 | P9: 200 | R9: 0 | S9: 6200 | T9: 138679 | W9: 138679
A10: 7 | B10: Sep | D10: 48100 | E10: 9000 | F10: 57100 | G10: 119 | H10: 67949 | I10: 30 | J10: 17130 | K10: 300 | L10: 2400 | M10: 0 | N10: 144879 | O10: 6000 | P10: 200 | R10: 0 | S10: 6200 | T10: 138679 | W10: 138679
A11: 8 | B11: Oct | D11: 48100 | E11: 9000 | F11: 57100 | G11: 119 | H11: 62647 | I11: 30 | J11: 17130 | K11: 300 | L11: 2400 | M11: 0 | N11: 139577 | O11: 6000 | P11: 200 | R11: 0 | S11: 6200 | T11: 133377 | W11: 133377
A12: 9 | B12: Nov | D12: 48100 | E12: 9000 | F12: 57100 | G12: 119 | H12: 62647 | I12: 30 | J12: 17130 | K12: 300 | L12: 2400 | M12: 0 | N12: 139577 | O12: 6000 | P12: 200 | R12: 0 | S12: 6200 | T12: 133377 | W12: 133377
A13: 10 | B13: Dec | D13: 48100 | E13: 9000 | F13: 57100 | G13: 119 | H13: 67949 | I13: 30 | J13: 17130 | K13: 300 | L13: 2400 | M13: 0 | N13: 144879 | O13: 6000 | P13: 200 | R13: 0 | S13: 6200 | T13: 138679 | W13: 138679
A14: 11 | B14: Jan | D14: 48100 | E14: 9000 | F14: 57100 | G14: 119 | H14: 67949 | I14: 30 | J14: 17130 | K14: 300 | L14: 2400 | M14: 0 | N14: 144879 | O14: 6000 | P14: 200 | R14: 0 | S14: 6200 | T14: 138679 | W14: 138679
A15: 12 | B15: Feb | D15: 48100 | E15: 9000 | F15: 57100 | G15: 119 | H15: 67949 | I15: 30 | J15: 17130 | K15: 300 | L15: 2400 | M15: 0 | N15: 144879 | O15: 6000 | P15: 300 | R15: 0 | S15: 6300 | T15: 138579 | W15: 138579
D16: =SUM(D4:D15) -> 570560 | E16: =SUM(E4:E15) -> 108000 | F16: =SUM(F4:F15) -> 678560 | H16: =SUM(H4:H15) -> 796884 | J16: =SUM(J4:J15) -> 203568 | K16: 3600 | L16: 26400 | M16: =SUM(M4:M15) -> 0 | N16: 1709012 | O16: 72000 | P16: 2500 | Q16: =SUM(Q4:R15) -> 80000 | S16: 154500 | T16: 1554512
B17: Details of DA, Increment, Basic, Grade Pay, HRA, CLA or TA arrears ,GPF and Other income received during this financial year | Q17: =K111 -> 182791
B18: Sr no | C18: Date | E18: DA and Salary arrears - amount | F18: Details | H18: Date | J18: GPF | L18: Date | O18: Other income | Q18: Details | S18: Date | U18: Income tax deducted (other than monthly deduction)
B19: 1 | C19: 2016-04-02 | E19: 29352 | F19: 6% D.A Arrears | L19: 2016-05-03 | O19: 15554 | Q19: Exam
B20: 2 | C20: 2016-04-26 | E20: 60013 | F20: 6th Pay arrears last installment
B21: 3
B22: 4
B23: 5
B24: 6
B25: 7
B26: 8
B27: 9
B28: 10
B29: 11
B30: 12
B31: 13
B32: 14
B33: 15
C34: Total | E34: =SUM(E19:E28) -> 89365 | J34: =SUM(J19:J33) -> 0 | O34: =SUM(O19:O33) -> 15554 | U34: =SUM(U19:U33) -> 0
E36: Date of birth | F36: 1970-07-17 | H36: Approximate age (years) | N36: =(TODAY()-F36)/365 -> 46.07123288
A39: FORM NO.16
A40: {See rule 31(1)(a)}
A41: PART A
A42: Certificate under section 203 of the Income tax Act, 1961 for tax deducted at source on salary.
A43: Name and Address of the employer | G43: Name and designation of the employee
A44: G. E. Society's, Dr. T. K. Tope Arts & Commerce Night College, Parel, Mumbai: 12. | G44: =C1 -> Shubharaj Buwa, Associate Professor, Political Science
A48: PAN / GIR NO. | D48: TAN No. of the Deductor | H48: PAN No. of the Employee
D49: MUMG09044A | H49: =P1 -> AEGPB6763H
A50: CIT (TDS) The Commissioner of Income Tax (TDS) Room No. 900A, 9th Floor, K.G. Mittal Ayurvedic Hospital Building, Charni Road, Mumbai – 400002 | G50: Assessment Year | H50: =N1 -> 2017-18 | I50: Period | J50: From | K50: 2016-04-01 | L50: To | N50: 2017-03-31
A51: Quarter | C51: Receipt Numbers of original statements of TDS under sub-section(3) of section 200 | F51: Amount of tax deducted in respect deducted in respect of employee | H51: Amount of tax deposited/remitted in respect of the employee
A52: Quarter 1
A53: Quarter 2
A54: Quarter 3
A55: Quarter 4
A56: Total
A57: PART B (Refer Note 1)
A58: DETAILS OF SALARY PAID AND ANY OTHER INCOME AND TAX DEDUCTED
A59: 1 | B59: Gross Salary | I59: =SUM(F59:H62) -> 1798377
B60: (a) Salary as per provision contained in section 17 (1) | F60: =N16+E34 -> 1798377
B61: (b) Value of perquisites under section 17(2) (as per Form No. 12 BA, whereever applicable) | F61: 0
B62: (c) Profits in lieu of Salary under section 17(3) (as per Form No. 12BA, whereever applicable) | F62: 0
B63: (d) Total | F63: =SUM(F60:H62) -> 1798377
A64: 2 | B64: Less:Allowance to the extent exempt under section 10 | I64: =F67 -> 26400
B65: Allowances
B66: TA | C66: =L16 -> 26400
B67: Other | C67: 0 | F67: =SUM(C66:E67) -> 26400
A69: 3 | B69: Balance (1-2) | I69: =I59-I64 -> 1771977
A70: 4 | B70: Deductions:
B71: (a) Entertainment allowance | F71: 0
B72: (b) Tax on Employment | F72: =P16 -> 2500
A73: 5 | B73: Aggregate of 4(a) and (b ) | I73: =SUM(F71:H72) -> 2500
A74: 6 | B74: Income chargeable under head 'salaries' (3-5) | I74: =I69-I73 -> 1769477
A75: 7 | B75: Add: Any other income reported by the employee
B76: Other income | E76: =O34 -> 15554
B77: House rent received | E77: 82500
B78: Std. ded @ 30% of annual value | E78: =E77*30/100 -> 24750
B79: Housing loan interest (other than 1st home) | E79: 258990
B80: Income from let out property | E80: =E77-E78-E79 -> -201240
B81: Housing loan interest - self occupied home
A83: 8 | B83: Gross total income (6+7) | K83: =I74+E76+E80 -> 1583791
A84: 9 | B84: Deductions under Chapter VIA
B85: (A) Sections 80C, 80CCC and 80CCD
B86: (a) Sections 80C | I86: Gross Amount | K86: Deductible Amount
B87: (i) | C87: LIC | I87: =5941+(2552*12)+5736 -> 42301 | K87: =I87 -> 42301
B88: (ii) | C88: PPF | I88: 0 | K88: =IF(I88<100000,I88,100000) -> 0
B89: (iii) | C89: Housing loan principal | I89: 107970 | K89: =I89 -> 107970
B90: (v) | C90: GPF | I90: =O16+J34 -> 72000 | K90: =I90 -> 72000
B91: (b) Sections 80D Medical Insurance | I91: 0 | K91: =I91 -> 0
B92: (c) Sections 80TTA Savings a/c int. upto 10,000 to be deducted | I92: 0 | K92: =IF(I92>10000, 10000,I92) -> 0
B93: Total | I93: =SUM(I87:J92) -> 222271 | K93: =IF(I93>150000,150000,I93)+K92+K91 -> 150000
A94: Note: | B94: 1. Aggregate amount deductible under section 80C shall not exceed one lakh fifty thousand rupees.
B95: 2. Aggregate amount deductible under the three sections, i.e. 80C, 80CCC and 80 CCD, shall not exceed one lakh fifty thousand rupees.
B96: (B) Other sections (for e.g.,80E, 80G etc.) under Chapter VIA
B97: I. Under section 88 (Please specify) | F97: Gross Amount | I97: Qualifying Amount | K97: Deductible Amount
B98: (a) | C98: Section
B99: (b) | C99: Section
B100: (c) | C100: Section
B101: (d) | C101: Section
B102: (e) | C102: Section
B103: Total | F103: =SUM(F98:H102) -> 0 | K103: =SUM(K98:N102) -> 0
A104: 10 | B104: Aggregate of deductible amounts under Chapter VI-A | F104: =K93+K103 -> 150000 | K104: =K93 -> 150000
A105: 11 | B105: Total Income (8 - 10) | K105: =K83-K104 -> 1433791
A106: 12 | B106: Tax on Total Income | K106: =IF(K105<500001,TAX(K1,K105)-2000,TAX(K1,K105)) -> 255137.3
A107: 13 | B107: Education cess @ 3% (tax at S.No. 12 ) | K107: =K106*3% -> 7654.119
A108: 14 | B108: Tax payable (12 + 13) | K108: =ROUND(K106+K107,0) -> 262791
A109: 15 | B109: Relief under section 89 (attach details) | K109: 0
A110: 16 | B110: Total Income Tax deducted at source | K110: =Q16+U34 -> 80000
A111: 16 | B111: Tax payable / refundable (14 - 15) | K111: =K108-K109-K110 -> 182791
A112: DETAILS OF TAX DEDUCTED AND DEPOSITED INTO CENTRAL GOVERNMENT ACCOUNT
A113: (The Employer is to provide transaction-wise details of tax deducted and deposited)
A114: Sr. No. | B114: TDS Rs. | C114: Surcharge Rs. | D114: Education Cess Rs. | E114: Total Tax deposited Rs. | G114: Cheque / DD No. (if any) | H114: B S R Code of Bank Branch | I114: Date of which tax deposited (dd/mm/yy) | J114: Transfer Voucher / Challan Identification No.
A115: 1 | B115: =Q4 -> 20000 | C115: 0 | D115: =R4 -> 0 | E115: =SUM(B115+C115+D115) -> 20000
A116: 2 | B116: 20000 | C116: 0 | D116: =R5 -> 0 | E116: =SUM(B116+C116+D116) -> 20000
A117: 3 | B117: 20000 | C117: 0 | D117: 0 | E117: 20000
A118: 4 | B118: 20000 | C118: 0 | D118: 0 | E118: 20000
A119: 5 | B119: 0 | C119: 0 | D119: 0 | E119: 0
A120: 6 | B120: 0 | C120: 0 | D120: 0 | E120: 0
A121: 7 | B121: 0 | C121: 0 | D121: 0 | E121: 0
A122: 8 | B122: 0 | C122: 0 | D122: 0 | E122: 0
A123: 9 | B123: 0 | C123: 0 | D123: 0 | E123: 0
A124: 10 | B124: 0 | C124: 0 | D124: 0 | E124: 0
A125: 11 | B125: 0 | C125: 0 | D125: 0 | E125: 0
A126: 12 | B126: =Q15 -> 0 | C126: =S35 -> 0 | D126: 0 | E126: 0
A127: 13 | B127: =U34 -> 0 | C127: 0 | D127: 0 | E127: 0
B128: =SUM(B115:B127) -> 80000 | C128: =SUM(C115:C127) -> 0 | D128: 0 | E128: 80000
A129: I Prin. V. B. Rokade, Son of Shri. Baliram S. Rokade working in the capacity of PRINCIPAL (designation)
A130: do hereby certify that a sum of | E130: =E128 -> 80000 | H130: =SpellNumber(E130) -> Eighty Thousand Rupees and Zero Paise
A131: has been deducted at source and paid to the credit of the Central Government.
A132: I further certify that the information given above is true and correct based on the books of account documents
A133: and other available records.
A134: Place: Parel, Mumbai: 12 | F134: Signature of the person responsible for deduction of tax
F136: Full Name | J136: Prin. V. B. Rokade
A137: Date: | F137: Designation | J137: Principal

Sheet blank sample
A1: Name | F1: FY | G1: 2016-04-01 | H1: 2017-03-01 | J1: Gender | K1: M | L1: AY | N1: 2017-18 | O1: PAN | S1: Bank A/c No.
A2: Basic Salary as on 1/4/2016 | F2: =D4 -> 10000 | G2: Grade pay | H2: 9000 | I2: CLA | J2: 300
A3: Sr. No. | B3: Month | C3: Increments | D3: Basic | E3: Grade pay | F3: Total - Basic + Grade pay | G3: DA% | H3: DA | I3: HRA% | J3: HRA | K3: CLA | L3: TA | M3: Principal allowance | N3: Gross | O3: GPF | P3: PT | Q3: IT | R3: Cess | S3: TD | T3: NET | U3: Bank amount | V3: Date deposited | W3: Difference
A4: 1 | B4: Mar | D4: 10000 | E4: =$H$2 -> 9000 | F4: =D4+E4 -> 19000 | G4: 119 | H4: =ROUND((F4*(G4/100)),0) -> 22610 | I4: 30 | J4: =ROUND((F4*($I$4/100)),0) -> 5700 | K4: =$J$2 -> 300 | L4: 2400 | M4: 0 | N4: =F4+H4+J4+K4+L4+M4 -> 50010 | O4: 6000 | P4: 200 | R4: 0 | S4: =SUM(O4:R4) -> 6200 | T4: =N4-S4 -> 43810 | V4: 2016-04-02 | W4: =T4-U4 -> 43810
A5: 2 | B5: Apr | D5: =D4+C5 -> 10000 | E5: =$H$2 -> 9000 | F5: 19000 | G5: 119 | H5: 22610 | I5: 30 | J5: =ROUNDUP((F5*($I$4/100)),0) -> 5700 | K5: =$J$2 -> 300 | L5: 2400 | M5: 0 | N5: =F5+H5+J5+K5+L5+M5 -> 50010 | O5: 6000 | P5: 200 | R5: 0 | S5: 6200 | T5: 43810 | V5: 2016-05-02 | W5: 43810
A6: 3 | B6: May | D6: =D5+C6 -> 10000 | E6: 9000 | F6: 19000 | G6: 119 | H6: 22610 | I6: 30 | J6: =ROUND((F6*($I$6/100)),0) -> 5700 | K6: 300 | L6: 0 | M6: 0 | N6: 47610 | O6: 6000 | P6: 200 | R6: 0 | S6: 6200 | T6: 41410 | V6: 2016-06-02 | W6: 41410
A7: 4 | B7: Jun | D7: 10000 | E7: 9000 | F7: 19000 | G7: 119 | H7: 22610 | I7: 30 | J7: =ROUND((F7*($I$6/100)),0) -> 5700 | K7: 300 | L7: 2400 | M7: 0 | N7: 50010 | O7: 6000 | P7: 200 | R7: 0 | S7: 6200 | T7: 43810 | V7: 2016-07-01 | W7: 43810
A8: 5 | B8: Jul | C8: =MROUND(F7*3%,10) -> 570 | D8: =D7+C8 -> 10570 | E8: 9000 | F8: 19570 | G8: 119 | H8: 23288 | I8: 30 | J8: 5871 | K8: 300 | L8: 2400 | M8: 0 | N8: 51429 | O8: 6000 | P8: 200 | R8: 0 | S8: 6200 | T8: 45229 | W8: 45229
A9: 6 | B9: Aug | D9: 10570 | E9: 9000 | F9: 19570 | G9: 119 | H9: 23288 | I9: 30 | J9: 5871 | K9: 300 | L9: 2400 | M9: 0 | N9: 51429 | O9: 6000 | P9: 200 | R9: 0 | S9: 6200 | T9: 45229 | W9: 45229
A10: 7 | B10: Sep | D10: 10570 | E10: 9000 | F10: 19570 | G10: 119 | H10: 23288 | I10: 30 | J10: 5871 | K10: 300 | L10: 2400 | M10: 0 | N10: 51429 | O10: 6000 | P10: 200 | R10: 0 | S10: 6200 | T10: 45229 | W10: 45229
A11: 8 | B11: Oct | D11: 10570 | E11: 9000 | F11: 19570 | G11: 119 | H11: 62647 | I11: 30 | J11: 5871 | K11: 300 | L11: 2400 | M11: 0 | N11: 90788 | O11: 6000 | P11: 200 | R11: 0 | S11: 6200 | T11: 84588 | W11: 84588
A12: 9 | B12: Nov | D12: 10570 | E12: 9000 | F12: 19570 | G12: 119 | H12: 62647 | I12: 30 | J12: 5871 | K12: 300 | L12: 2400 | M12: 0 | N12: 90788 | O12: 6000 | P12: 200 | R12: 0 | S12: 6200 | T12: 84588 | W12: 84588
A13: 10 | B13: Dec | D13: 10570 | E13: 9000 | F13: 19570 | G13: 119 | H13: 23288 | I13: 30 | J13: 5871 | K13: 300 | L13: 2400 | M13: 0 | N13: 51429 | O13: 6000 | P13: 200 | R13: 0 | S13: 6200 | T13: 45229 | W13: 45229
A14: 11 | B14: Jan | D14: 10570 | E14: 9000 | F14: 19570 | G14: 119 | H14: 23288 | I14: 30 | J14: 5871 | K14: 300 | L14: 2400 | M14: 0 | N14: 51429 | O14: 6000 | P14: 200 | R14: 0 | S14: 6200 | T14: 45229 | W14: 45229
A15: 12 | B15: Feb | D15: 10570 | E15: 9000 | F15: 19570 | G15: 119 | H15: 23288 | I15: 30 | J15: 5871 | K15: 300 | L15: 2400 | M15: 0 | N15: 51429 | O15: 6000 | P15: 300 | R15: 0 | S15: 6300 | T15: 45129 | W15: 45129
D16: =SUM(D4:D15) -> 124560 | E16: =SUM(E4:E15) -> 108000 | F16: =SUM(F4:F15) -> 232560 | H16: =SUM(H4:H15) -> 355462 | J16: =SUM(J4:J15) -> 69768 | K16: 3600 | L16: 26400 | M16: =SUM(M4:M15) -> 0 | N16: 687790 | O16: 72000 | P16: 2500 | Q16: =SUM(Q4:R15) -> 0 | S16: 74500 | T16: 613290
B17: Details of DA, Increment, Basic, Grade Pay, HRA, CLA or TA arrears ,GPF and Other income received during this financial year | Q17: =K111 -> 43649
B18: Sr no | C18: Date | E18: DA and Salary arrears - amount | F18: Details | H18: Date | J18: GPF | L18: Date | O18: Other income | Q18: Details | S18: Date | U18: Income tax deducted (other than monthly deduction)
B19: 1 | C19: 2016-04-02 | E19: 0 | F19: 6% D.A Arrears | L19: 2016-05-03 | O19: 0 | Q19: Exam
B20: 2 | C20: 2016-04-26 | E20: 0 | F20: 6th Pay arrears last installment
B21: 3
B22: 4
B23: 5
B24: 6
B25: 7
B26: 8
B27: 9
B28: 10
B29: 11
B30: 12
B31: 13
B32: 14
B33: 15
C34: Total | E34: =SUM(E19:E28) -> 0 | J34: =SUM(J19:J33) -> 0 | O34: =SUM(O19:O33) -> 0 | U34: =SUM(U19:U33) -> 0
E36: Date of birth | F36: 2016-07-02 | H36: Approximate age (years) | N36: =(TODAY()-F36)/365 -> 0.07945205479
A39: FORM NO.16
A40: {See rule 31(1)(a)}
A41: PART A
A42: Certificate under section 203 of the Income tax Act, 1961 for tax deducted at source on salary.
A43: Name and Address of the employer | G43: Name and designation of the employee
A44: G. E. Society's, Dr. T. K. Tope Arts & Commerce Night College, Parel, Mumbai: 12. | G44: =C1 -> 0
A48: PAN / GIR NO. | D48: TAN No. of the Deductor | H48: PAN No. of the Employee
D49: MUMG09044A | H49: =P1 -> 0
A50: CIT (TDS) The Commissioner of Income Tax (TDS) Room No. 900A, 9th Floor, K.G. Mittal Ayurvedic Hospital Building, Charni Road, Mumbai – 400002 | G50: Assessment Year | H50: =N1 -> 2017-18 | I50: Period | J50: From | K50: 2016-04-01 | L50: To | N50: 2017-03-31
A51: Quarter | C51: Receipt Numbers of original statements of TDS under sub-section(3) of section 200 | F51: Amount of tax deducted in respect deducted in respect of employee | H51: Amount of tax deposited/remitted in respect of the employee
A52: Quarter 1
A53: Quarter 2
A54: Quarter 3
A55: Quarter 4
A56: Total
A57: PART B (Refer Note 1)
A58: DETAILS OF SALARY PAID AND ANY OTHER INCOME AND TAX DEDUCTED
A59: 1 | B59: Gross Salary | I59: =SUM(F59:H62) -> 687790
B60: (a) Salary as per provision contained in section 17 (1) | F60: =N16+E34 -> 687790
B61: (b) Value of perquisites under section 17(2) (as per Form No. 12 BA, whereever applicable) | F61: 0
B62: (c) Profits in lieu of Salary under section 17(3) (as per Form No. 12BA, whereever applicable) | F62: 0
B63: (d) Total | F63: =SUM(F60:H62) -> 687790
A64: 2 | B64: Less:Allowance to the extent exempt under section 10 | I64: =F67 -> 26400
B65: Allowances
B66: TA | C66: =L16 -> 26400
B67: Other | C67: 0 | F67: =SUM(C66:E67) -> 26400
A69: 3 | B69: Balance (1-2) | I69: =I59-I64 -> 661390
A70: 4 | B70: Deductions:
B71: (a) Entertainment allowance | F71: 0
B72: (b) Tax on Employment | F72: =P16 -> 2500
A73: 5 | B73: Aggregate of 4(a) and (b ) | I73: =SUM(F71:H72) -> 2500
A74: 6 | B74: Income chargeable under head 'salaries' (3-5) | I74: =I69-I73 -> 658890
A75: 7 | B75: Add: Any other income reported by the employee
B76: Other income | E76: =O34 -> 0
B77: House rent received | E77: 0
B78: Std. ded @ 30% of annual value | E78: =E77*30/100 -> 0
B79: Housing loan interest (other than 1st home) | E79: 0
B80: Income from let out property | E80: =E77-E78-E79 -> 0
B81: Housing loan interest - self occupied home | E81: 0
A83: 8 | B83: Gross total income (6+7) | K83: =I74+E76+E80+E81 -> 658890
A84: 9 | B84: Deductions under Chapter VIA
B85: (A) Sections 80C, 80CCC and 80CCD
B86: (a) Sections 80C | I86: Gross Amount | K86: Deductible Amount
B87: (i) | C87: LIC | I87: 0 | K87: =I87 -> 0
B88: (ii) | C88: PPF | I88: 0 | K88: =IF(I88<100000,I88,100000) -> 0
B89: (iii) | C89: Housing loan principal | I89: 0 | K89: =I89 -> 0
B90: (v) | C90: GPF | I90: =O16+J34 -> 72000 | K90: =I90 -> 72000
B91: (b) Sections 80D Medical Insurance | K91: =I91 -> 0
B92: (c) Sections 80TTA Savings a/c int. upto 10,000 to be deducted | I92: 0 | K92: =IF(I92>10000, 10000,I92) -> 0
B93: Total | I93: =SUM(I87:J92) -> 72000 | K93: =IF(I93>150000,150000,I93)+K92+K91 -> 72000
A94: Note: | B94: 1. Aggregate amount deductible under section 80C shall not exceed one lakh fifty thousand rupees.
B95: 2. Aggregate amount deductible under the three sections, i.e. 80C, 80CCC and 80 CCD, shall not exceed one lakh fifty thousand rupees.
B96: (B) Other sections (for e.g.,80E, 80G etc.) under Chapter VIA
B97: I. Under section 88 (Please specify) | F97: Gross Amount | I97: Qualifying Amount | K97: Deductible Amount
B98: (a) | C98: Section
B99: (b) | C99: Section
B100: (c) | C100: Section
B101: (d) | C101: Section
B102: (e) | C102: Section
B103: Total | F103: =SUM(F98:H102) -> 0 | K103: =SUM(K98:N102) -> 0
A104: 10 | B104: Aggregate of deductible amounts under Chapter VI-A | F104: =K93+K103 -> 72000 | K104: =K93 -> 72000
A105: 11 | B105: Total Income (8 - 10) | K105: =K83-K104 -> 586890
A106: 12 | B106: Tax on Total Income | K106: =IF(K105<300000,0,IF(K105<500001,TAX(K1,K105)-5000,TAX(K1,K105))) -> 42378
A107: 13 | B107: Education cess @ 3% (tax at S.No. 12 ) | K107: =K106*3% -> 1271.34
A108: 14 | B108: Tax payable (12 + 13) | K108: =ROUND(K106+K107,0) -> 43649
A109: 15 | B109: Relief under section 89 (attach details) | K109: 0
A110: 16 | B110: Total Income Tax deducted at source | K110: =Q16+U34 -> 0
A111: 16 | B111: Tax payable / refundable (14 - 15) | K111: =K108-K109-K110 -> 43649
A112: DETAILS OF TAX DEDUCTED AND DEPOSITED INTO CENTRAL GOVERNMENT ACCOUNT
A113: (The Employer is to provide transaction-wise details of tax deducted and deposited)
A114: Sr. No. | B114: TDS Rs. | C114: Surcharge Rs. | D114: Education Cess Rs. | E114: Total Tax deposited Rs. | G114: Cheque / DD No. (if any) | H114: B S R Code of Bank Branch | I114: Date of which tax deposited (dd/mm/yy) | J114: Transfer Voucher / Challan Identification No.
A115: 1 | B115: =Q4 -> 0 | C115: 0 | D115: =R4 -> 0 | E115: =SUM(B115+C115+D115) -> 0
A116: 2 | B116: 0 | C116: 0 | D116: =R5 -> 0 | E116: =SUM(B116+C116+D116) -> 0
A117: 3 | B117: 0 | C117: 0 | D117: 0 | E117: 0
A118: 4 | B118: 0 | C118: 0 | D118: 0 | E118: 0
A119: 5 | B119: 0 | C119: 0 | D119: 0 | E119: 0
A120: 6 | B120: 0 | C120: 0 | D120: 0 | E120: 0
A121: 7 | B121: 0 | C121: 0 | D121: 0 | E121: 0
A122: 8 | B122: 0 | C122: 0 | D122: 0 | E122: 0
A123: 9 | B123: 0 | C123: 0 | D123: 0 | E123: 0
A124: 10 | B124: 0 | C124: 0 | D124: 0 | E124: 0
A125: 11 | B125: 0 | C125: 0 | D125: 0 | E125: 0
A126: 12 | B126: =Q15 -> 0 | C126: =S35 -> 0 | D126: 0 | E126: 0
A127: 13 | B127: =U34 -> 0 | C127: 0 | D127: 0 | E127: 0
B128: =SUM(B115:B127) -> 0 | C128: =SUM(C115:C127) -> 0 | D128: 0 | E128: 0
A129: I Prin. V. B. Rokade, Son of Shri. Baliram S. Rokade working in the capacity of PRINCIPAL (designation)
A130: do hereby certify that a sum of | E130: =E128 -> 0 | H130: =SpellNumber(E130) -> Zero Rupees and Zero Paise
A131: has been deducted at source and paid to the credit of the Central Government.
A132: I further certify that the information given above is true and correct based on the books of account documents
A133: and other available records.
A134: Place: Parel, Mumbai: 12 | F134: Signature of the person responsible for deduction of tax
F136: Full Name | J136: Prin. V. B. Rokade
A137: Date: | F137: Designation | J137: Principal
